bitfinex/quotes_ETHUSD_20251015
["timestamp","ask_amount","ask_price","bid_price","bid_amount"]
[1760536453160,2.884,4057.8,4056.4,0.4039]
[1760536453458,2.884,4057.8,4057.2,2.46475322]
[1760536453621,2.884,4057.8,4057.6,2.46450723]
[1760536453820,2.884,4057.8,4056.6,2.46506052]
[1760536454026,2.884,4057.8,4056.5,2.46517934]
[1760536454260,2.884,4057.8,4057.7,2.4644503]
[1760536454959,2.884,4057.8,4055.8,2.86946761]
[1760536454960,3.328,4057.8,4055.8,2.86946761]
[1760536455134,3.328,4057.8,4057.2,2.46475277]
[1760536455528,3.328,4057.8,4057.3,2.46468532]
[1760536455728,0.444,4057.7,4057.1,2.46480134]
[1760536455963,2.884,4057.8,4057.2,2.46469719]
[1760536456325,2.884,4057.8,4057.4,2.46462283]
[1760536456552,2.884,4057.8,4057.4,2.46457326]
[1760536456727,0.444,4057.7,4056.3,0.6074]
[1760536456928,0.444,4057.7,4055.5,0.4039]
[1760536456929,0.6336,4057.5,4055.5,0.4039]
[1760536457122,0.6336,4057.5,4056.5,2.46515437]
[1760536457362,2.884,4057.8,4056.4,0.2035]
[1760536457674,2.884,4057.8,4056.6,2.46511857]
[1760536457833,0.6336,4057.6,4056.9,2.46493026]
[1760536458030,0.6336,4057.4,4055.1,2.66632221]
[1760536458229,2.3616,4057.4,4055.1,0.2003]
[1760536458429,0.6336,4056.7,4055.9,2.46554187]
[1760536458764,3.0992,4056.6,4055.1,0.2003]
[1760536459007,2.881,4056.6,4056.4,2.46519471]
[1760536459156,2.881,4056.6,4056.3,2.46529073]
[1760536459356,2.881,4056.6,4056.5,2.46517934]
[1760536459558,0.444,4058.1,4056.5,0.4039]
[1760536459790,2.881,4058.0,4056.6,2.47167584]
[1760536459996,2.881,4058.0,4056.5,0.4039]
[1760536460197,2.881,4058.0,4057.9,2.46432884]
[1760536461289,2.881,4058.0,4057.9,2.58752884]
[1760536461901,0.001,4058.8,4058.7,2.4638431]
[1760536462089,2.636,4058.8,4058.7,2.5862431]
[1760536465069,0.001,4058.8,4058.7,2.9901431]
[1760536466311,0.001,4058.8,4058.7,3.01478153]
[1760536466721,0.001,4058.8,4058.7,5.89278153]
[1760536466915,0.001,4058.8,4058.7,5.8681431]
[1760536467215,0.001,4058.8,4058.7,2.9901431]
[1760536467401,0.001,4058.8,4058.7,3.00346369]
[1760536467594,0.001,4058.8,4058.7,5.88046369]
[1760536467925,0.001,4058.8,4058.7,7.8974751]
[1760536468115,0.001,4058.8,4058.7,5.8671431]
[1760536468619,0.001,4058.8,4058.7,5.8661431]
[1760536468782,0.001,4058.8,4058.7,2.9901431]
[1760536469115,0.001,4058.8,4058.7,5.9413061]
[1760536469293,0.001,4058.8,4058.7,2.9901431]
[1760536469839,0.001,4058.8,4058.7,2.5862431]
[1760536469988,0.001,4058.8,4058.7,2.9901431]
[1760536470497,0.001,4058.8,4058.7,2.5862431]
[1760536470905,0.001,4058.8,4058.7,2.60763613]
[1760536471133,0.001,4058.8,4058.7,2.5862431]
[1760536472318,0.001,4058.8,4058.7,2.9901431]
[1760536472621,0.001,4058.8,4058.7,6.9936231]
[1760536472985,0.001,4058.8,4058.7,4.7181431]
[1760536473191,0.001,4058.8,4058.7,8.5924309]
[1760536473413,0.001,4058.8,4058.7,6.8504821]
[1760536473617,0.001,4058.8,4058.7,4.7181431]
[1760536473824,0.0002,4058.8,4058.7,8.7533471]
[1760536474040,0.0002,4058.8,4058.7,4.7181431]
[1760536474340,0.0002,4058.8,4058.7,10.1084291]
[1760536474647,0.001,4059.3,4059.2,4.65415061]
[1760536474799,0.001,4059.3,4059.2,2.47455927]
[1760536474999,0.001,4059.3,4059.2,2.59695927]
[1760536475224,0.001,4059.3,4059.2,5.45893961]
[1760536475622,0.001,4059.3,4059.2,5.86283961]
[1760536476037,0.001,4059.3,4059.2,12.63971361]
[1760536476263,0.001,4060.1,4060.0,2.46305418]
[1760536476536,0.001,4060.1,4060.0,5.33505418]
[1760536476737,0.001,4060.1,4060.0,5.45745418]
[1760536477938,0.001,4060.1,4060.0,2.46305418]
[1760536478128,0.4745,4060.1,4057.8,0.4039]
[1760536478547,0.4745,4060.1,4059.4,2.46340419]
[1760536478841,0.7011,4060.0,4059.6,2.46328493]
[1760536479042,0.001,4060.1,4059.1,2.46355186]
[1760536479222,0.001,4060.1,4060.0,2.46305418]
[1760536480108,0.4745,4060.1,4060.0,2.46305418]
[1760536480745,0.4745,4060.1,4059.6,2.46325178]
[1760536480952,0.2276,4059.7,4059.6,2.463257]
[1760536481111,0.001,4060.1,4059.1,0.2003]
[1760536481438,0.2276,4060.0,4059.9,2.46307015]
[1760536481645,0.7011,4060.0,4059.9,2.46307015]
[1760536481818,0.7011,4060.0,4059.0,2.46360652]
[1760536482006,0.7011,4060.0,4059.7,2.46318402]
[1760536482347,0.7011,4060.0,4058.3,2.46408594]
[1760536482348,0.4735,4059.9,4058.3,2.46408594]
[1760536482642,0.4735,4059.9,4058.4,2.46402523]
[1760536482828,0.4735,4059.9,4059.5,2.46330082]
[1760536483028,0.4735,4059.8,4058.4,1.728]
[1760536483231,0.4735,4059.8,4059.7,2.46323619]
[1760536483432,0.4735,4059.8,4058.7,2.46384266]
[1760536483611,0.2276,4058.8,4058.7,2.4638431]
[1760536483808,0.7011,4058.8,4058.7,2.4638431]
[1760536484013,0.7011,4058.8,4057.4,2.46463252]
[1760536484224,2.69144147,4058.8,4057.7,2.46439548]
[1760536484422,0.2276,4057.8,4056.3,2.46529336]
[1760536484629,0.2276,4057.8,4057.7,2.4644503]
[1760536484849,0.7011,4057.8,4056.2,5.33533592]
[1760536485049,0.7011,4057.8,4056.3,1.728]
[1760536485281,0.7011,4057.8,4057.6,2.46450816]
[1760536485570,0.6336,4057.6,4056.2,0.002]
[1760536486015,0.2276,4056.7,4056.2,0.002]
[1760536486221,0.2276,4056.7,4056.6,2.46711857]
[1760536486761,0.7011,4056.7,4056.6,2.46711857]
[1760536487069,0.7011,4056.7,4056.6,0.002]
[1760536487629,1.3347,4056.7,4056.6,0.002]
[1760536487943,1.3347,4056.7,4056.6,0.1252]
[1760536488265,3.7997578,4056.7,4056.6,0.002]
[1760536488837,1.3347,4056.7,4056.6,0.002]
[1760536489274,1.3347,4056.7,4056.6,0.1252]
[1760536489776,0.7011,4056.7,4056.6,0.1252]
[1760536489954,0.7011,4056.7,4056.6,0.002]
[1760536489955,1.3347,4056.7,4056.6,0.002]
[1760536490272,1.3347,4056.7,4056.2,0.002]
[1760536490273,3.09890088,4056.3,4056.2,0.002]
[1760536490472,0.6336,4056.0,4055.8,0.002]
[1760536490858,1.1071,4055.9,4055.8,0.002]
[1760536491950,0.4735,4055.9,4055.8,0.002]
[1760536492262,0.4735,4056.6,4055.8,0.002]
[1760536492456,0.4735,4056.6,4055.8,2.4676005]
[1760536492760,0.4735,4056.6,4055.8,0.002]
[1760536493065,0.4735,4056.6,4055.8,2.46754625]
[1760536493482,0.4735,4056.6,4056.1,2.4673977]
[1760536493786,0.2276,4056.7,4056.6,2.46511857]
[1760536494345,9.80991963,4058.1,4057.0,2.46487552]
[1760536494346,0.2148,4057.4,4057.0,2.46487552]
[1760536494544,0.4625,4057.3,4056.2,2.46536166]
[1760536494982,0.4625,4057.3,4057.0,2.46486073]
[1760536495478,0.4625,4057.2,4056.1,0.002]
[1760536495657,0.6336,4057.1,4056.1,0.002]
[1760536496158,0.4625,4057.0,4056.1,2.46736616]
[1760536496361,0.2148,4057.4,4056.8,2.46499704]
[1760536496560,0.2148,4057.4,4056.9,2.46492894]
[1760536496759,0.6773,4057.4,4057.1,2.4648013]
[1760536496959,0.6773,4057.4,4056.1,0.002]
[1760536496960,0.6773,4057.4,4056.3,2.46530088]
[1760536497177,0.6773,4057.4,4056.1,0.002]
[1760536497488,0.6765,4057.4,4056.3,2.46529511]
[1760536497689,0.214,4057.4,4057.3,2.46469326]
[1760536497892,2.46326649,4059.7,4056.1,0.002]
[1760536497893,0.2148,4059.1,4056.1,0.002]
[1760536498196,0.4625,4058.9,4058.0,2.46426348]
[1760536498396,0.4625,4058.9,4058.3,2.46407315]
[1760536498695,0.4625,4058.9,4058.0,2.46426348]
[1760536498996,0.4625,4058.9,4057.6,2.46451104]
[1760536499286,0.4625,4058.9,4058.5,2.46394749]
[1760536499501,0.2148,4059.1,4057.4,0.4087]
[1760536499706,0.2148,4059.1,4058.8,2.46376167]
[1760536499905,10.07657968,4058.9,4056.2,2.87406166]
[1760536500053,10.07657968,4058.9,4056.8,2.46496805]
[1760536500054,0.6336,4058.7,4056.8,2.46496805]
[1760536500258,3.0977477,4058.2,4056.1,2.58979309]
[1760536500490,0.6336,4058.0,4056.1,0.002]
[1760536500694,2.46490162,4057.0,4056.1,0.002]
[1760536500898,0.2148,4056.2,4056.1,0.002]
[1760536501188,3.31376166,4056.2,4056.1,0.002]
[1760536501352,1.3109,4056.2,4056.1,0.002]
[1760536501757,3.77626166,4056.2,4056.1,0.002]
[1760536502012,0.2148,4056.7,4056.1,0.002]
[1760536502309,0.2148,4056.9,4056.1,0.002]
[1760536502456,0.4625,4058.1,4056.1,0.5897]
[1760536502852,0.4625,4058.1,4056.2,1.728]
[1760536503101,10.07657968,4058.4,4057.5,2.46455393]
[1760536503312,2.1905,4058.6,4056.1,0.5897]
[1760536503592,10.29137968,4058.8,4056.4,10.07657968]
[1760536503593,0.2148,4058.8,4056.4,10.07657968]
[1760536503916,0.2148,4059.5,4057.0,10.07657968]
[1760536504193,0.001,4060.1,4059.0,2.463661]
[1760536504361,0.001,4060.1,4059.1,0.024636]
[1760536504555,0.001,4060.1,4058.8,1.728]
[1760536504756,0.001,4060.1,4058.7,0.2043]
[1760536504956,0.001,4060.1,4058.5,1.728]
[1760536505207,0.001,4060.1,4058.4,1.728]
[1760536505359,0.001,4060.1,4058.3,0.2043]
[1760536505685,0.001,4060.1,4059.4,2.46338924]
[1760536505889,0.001,4060.1,4059.5,2.46332586]
[1760536506087,0.001,4060.1,4059.6,2.4632968]
[1760536506274,0.001,4060.1,4059.1,2.91084988]
[1760536506474,0.001,4060.1,4059.2,1.728]
[1760536506776,0.001,4060.1,4059.5,2.46330973]
[1760536506987,0.001,4060.1,4059.1,0.4473]
[1760536507289,0.001,4060.1,4060.0,2.46305418]
[1760536508109,0.001,4060.1,4060.0,4.63835418]
[1760536509667,0.001,4060.1,4060.0,4.19105418]
[1760536510066,0.001,4060.1,4060.0,4.76075418]
[1760536510492,0.001,4060.1,4060.0,4.78303517]
[1760536510792,0.001,4060.1,4060.0,4.76075418]
[1760536510996,0.001,4060.1,4060.0,4.19105418]
[1760536511863,0.001,4060.1,4060.0,1.728]
[1760536512065,0.001,4060.1,4059.3,0.4473]
[1760536512260,0.001,4060.1,4059.4,1.728]
[1760536512463,0.001,4060.1,4059.1,1.728]
[1760536512674,0.001,4060.1,4058.3,0.2043]
[1760536512877,0.6336,4060.0,4058.3,0.2043]
[1760536513059,0.6336,4059.8,4058.3,0.2043]
[1760536513262,0.6336,4059.6,4057.2,3.3003]
[1760536513462,0.6336,4059.1,4057.2,0.4473]
[1760536513687,0.4415,4059.0,4057.4,2.46463252]
[1760536513892,0.4415,4059.0,4058.1,2.46419905]
[1760536514099,0.2164,4058.9,4057.3,4.19268501]
[1760536514300,0.6336,4059.3,4058.6,2.46387686]
[1760536514497,0.2164,4059.4,4058.1,0.2043]
[1760536514908,1.0751,4059.3,4057.1,0.4473]
[1760536515112,3.09718441,4059.2,4057.1,0.4473]
[1760536515406,3.09718441,4059.2,4058.2,2.46413909]
[1760536515610,0.6336,4058.7,4057.1,2.46481009]
[1760536515795,0.4415,4058.6,4057.8,2.46438731]
[1760536515998,0.6336,4058.5,4057.4,2.46457267]
[1760536516179,0.6336,4058.3,4057.6,2.46445381]
[1760536516376,0.6336,4058.3,4057.7,2.46440412]
[1760536516605,0.2164,4058.4,4057.1,0.2043]
[1760536516810,0.2164,4058.4,4057.2,1.728]
[1760536516977,0.6336,4058.7,4057.6,2.4645027]
[1760536517178,2.46395036,4058.6,4057.2,1.728]
[1760536517390,0.6336,4058.5,4056.8,2.46499704]
[1760536517605,2.4643215,4058.0,4056.9,2.46489048]
[1760536517810,0.6336,4057.8,4056.1,0.1244]
[1760536518013,0.6336,4057.6,4056.1,0.1244]
[1760536518176,0.6336,4057.4,4056.1,0.002]
[1760536518374,2.46437541,4057.9,4056.1,0.002]
[1760536518375,1.728,4058.2,4056.2,0.1224]
[1760536518575,1.0751,4058.1,4056.2,2.58770878]
[1760536518813,1.0751,4058.1,4057.0,2.46486059]
[1760536519008,1.0751,4058.1,4056.2,0.1224]
[1760536519009,1.0751,4058.1,4057.2,2.46469889]
[1760536519310,1.0751,4058.1,4056.2,0.1224]
[1760536519518,1.0751,4058.1,4056.3,4.19330088]
[1760536519689,1.0751,4058.1,4056.3,2.46530088]
[1760536520013,0.6336,4057.6,4056.4,1.728]
[1760536520193,0.6336,4057.4,4056.7,2.46500166]
[1760536520593,0.6336,4057.4,4056.2,1.8504]
[1760536520794,0.6336,4057.9,4056.3,1.728]
[1760536521113,0.6336,4057.9,4056.2,0.1224]
[1760536521114,3.09780738,4058.1,4058.0,0.1232]
[1760536521313,3.09780738,4058.1,4056.2,0.1224]
[1760536521314,0.6336,4058.3,4057.4,2.46461258]
[1760536521515,3.09780738,4058.1,4058.0,0.1232]
[1760536521810,3.09780738,4058.1,4056.0,2.46547371]
[1760536521811,3.09837089,4057.2,4056.2,2.46536166]
[1760536522010,0.6336,4057.3,4056.5,2.46513519]
[1760536522216,1.728,4058.1,4056.1,0.1252]
[1760536522382,0.6336,4057.9,4056.7,2.46499761]
[1760536522726,0.6336,4058.0,4056.4,2.46523008]
[1760536522950,0.6336,4057.4,4056.4,2.46519117]
[1760536523114,0.6336,4057.4,4056.2,2.46534694]
[1760536523115,0.2164,4056.5,4056.1,0.002]
[1760536523434,0.6336,4056.4,4056.1,0.002]
[1760536523636,3.09896166,4056.2,4056.1,0.002]
[1760536524011,3.54046166,4056.2,4056.1,0.002]
[1760536524334,3.54046166,4056.2,4055.7,0.002]
[1760536524335,3.09914402,4055.9,4055.7,0.002]
[1760536524534,3.09920481,4055.8,4055.7,0.002]
[1760536524702,3.54070481,4055.8,4055.7,0.002]
[1760536524904,1.0751,4055.8,4055.7,0.002]
[1760536525319,3.54070481,4055.8,4055.7,0.002]
[1760536525698,3.54070481,4055.8,4054.8,0.002]
[1760536525699,0.6336,4055.3,4054.8,0.002]
[1760536525931,3.09993453,4054.6,4052.8,2.46742084]
[1760536526118,3.09993453,4054.6,4053.3,2.46711467]
[1760536526119,2.3616,4054.6,4053.3,2.46711467]
[1760536526298,5.26943453,4054.6,4053.2,2.5903662]
[1760536526648,5.26943453,4054.6,4053.2,2.46718393]
[1760536526837,5.26943453,4054.6,4053.5,2.46698851]
[1760536526996,5.26943453,4054.6,4052.6,2.46949902]
[1760536526997,2.8031,4054.6,4053.6,2.46893859]
[1760536527199,5.26943453,4054.6,4053.6,0.002]
[1760536527729,2.3616,4054.6,4054.1,2.46663049]
[1760536527929,0.4415,4055.4,4054.1,0.2083]
[1760536528136,1.728,4055.5,4054.7,2.46625845]
[1760536528319,1.728,4055.5,4054.7,2.4662588]
[1760536528524,1.728,4055.5,4054.1,0.2083]
[1760536529154,1.728,4055.5,4054.0,0.002]
[1760536529155,0.2164,4054.6,4054.0,0.002]
[1760536529305,0.85,4054.6,4054.0,0.002]
[1760536529508,0.6336,4054.6,4054.0,0.002]
[1760536530127,3.54143453,4054.6,4054.0,0.002]
[1760536530331,5.26943453,4054.6,4054.0,0.002]
[1760536530979,2.3616,4054.6,4054.0,0.002]
[1760536531483,0.4415,4055.3,4054.1,0.2083]
[1760536531484,1.728,4055.2,4054.1,0.2083]
[1760536531780,0.2164,4055.9,4054.5,0.4493]
[1760536531939,0.4415,4055.8,4055.2,0.1232]
[1760536532144,2.46524621,4056.4,4055.1,0.2043]
[1760536532145,10.51807968,4056.4,4055.1,0.2043]
[1760536532388,10.51807968,4056.4,4055.7,0.1232]
[1760536532546,10.29297968,4055.8,4055.7,0.1232]
[1760536532747,10.29297968,4055.8,4054.5,0.002]
[1760536532748,1.728,4055.6,4054.5,0.002]
[1760536532980,1.9444,4055.8,4055.2,0.1232]
[1760536533194,2.46526489,4056.4,4054.6,2.46628388]
[1760536533195,10.51807968,4056.7,4055.1,0.2043]
[1760536533368,0.5647,4056.7,4055.5,0.1232]
[1760536533569,13.10638408,4056.7,4056.1,0.1232]
[1760536533745,2.46558595,4057.5,4056.4,0.1232]
[1760536533746,0.2164,4056.8,4056.4,0.1232]
[1760536534077,12.98318614,4056.7,4056.4,0.1232]
[1760536534275,12.98318614,4056.7,4055.6,2.46571778]
[1760536534276,2.1695,4056.6,4054.2,2.46651894]
[1760536534452,0.6336,4056.1,4056.0,0.1232]
[1760536534652,13.17560213,4056.1,4056.0,0.1232]
[1760536534890,13.17560213,4056.1,4054.1,0.2083]
[1760536534891,0.6336,4055.8,4054.7,2.4662522]
[1760536535043,0.2164,4055.7,4055.6,0.1232]
[1760536535245,0.6336,4055.9,4055.6,0.1232]
[1760536535478,0.6336,4056.3,4055.2,0.2043]
[1760536535686,2.1676,4056.2,4056.0,0.1232]
[1760536535848,10.19977968,4056.7,4056.0,0.1232]
[1760536536055,1.9444,4057.0,4056.6,0.1232]
[1760536536263,4.1930578,4056.7,4056.6,0.1232]
[1760536536466,0.6336,4055.8,4055.6,0.1232]
[1760536536674,3.3298656,4055.7,4055.6,0.1232]
[1760536536994,3.7694656,4055.7,4055.6,0.1232]
[1760536537194,3.7694656,4055.7,4054.5,0.002]
[1760536537195,2.3616,4055.6,4054.5,0.002]
[1760536537396,3.09970661,4055.0,4054.9,0.1232]
[1760536537766,0.6336,4055.0,4054.9,0.1232]
[1760536538686,3.09969124,4055.0,4054.9,0.1232]
[1760536538886,5.26729124,4055.0,4054.9,0.1232]
[1760536539197,3.10023871,4054.1,4054.0,0.002]
[1760536539400,14.90481839,4054.1,4054.0,0.002]
[1760536539590,15.34441839,4054.1,4054.0,0.002]
[1760536540999,0.6336,4054.1,4054.0,0.002]
[1760536541389,3.10023871,4054.1,4054.0,0.002]
[1760536541592,1.0732,4054.1,4054.0,0.002]
[1760536541817,3.53983871,4054.1,4054.0,0.002]
[1760536542168,0.6336,4054.1,4054.0,0.002]
[1760536543011,2.46645619,4054.4,4054.0,0.002]
[1760536543207,1.728,4054.6,4054.0,0.002]
[1760536543367,0.6336,4054.3,4054.0,0.002]
[1760536543574,0.6336,4054.2,4054.0,0.002]
[1760536543768,1.728,4054.6,4054.0,0.002]
[1760536543968,0.6336,4054.5,4054.0,0.002]
[1760536544170,2.46601768,4055.2,4054.1,0.2083]
[1760536544365,10.51617968,4055.6,4054.1,0.2083]
[1760536544603,10.51617968,4055.6,4054.0,0.002]
[1760536544604,1.728,4054.9,4054.0,0.002]
[1760536544905,0.6336,4054.6,4054.0,0.002]
[1760536545106,0.001,4055.0,4054.1,2.67493393]
[1760536545268,0.6346,4055.0,4054.1,0.2083]
[1760536545472,0.6336,4054.9,4054.1,0.2083]
[1760536545673,0.001,4055.0,4054.1,0.2083]
[1760536545971,0.001,4055.5,4055.4,2.465848]
[1760536546201,0.2306,4059.1,4055.4,8.99607]
[1760536546202,2.46389438,4058.7,4055.4,8.99607]
[1760536546366,0.2306,4059.1,4057.4,0.1222]
[1760536546799,0.2306,4059.1,4057.4,3.05253252]
[1760536547001,10.07657968,4059.0,4057.4,3.07717884]
[1760536547200,10.07657968,4059.0,4057.4,2.58683252]
[1760536547521,1.728,4058.9,4057.4,2.58683252]
[1760536547814,10.07657968,4060.3,4057.4,3.07586724]
[1760536547971,10.07657968,4060.3,4057.9,2.46432884]
[1760536548371,0.2306,4059.8,4057.9,2.93002884]
[1760536548592,0.2306,4058.9,4057.9,2.46432884]
[1760536548796,0.2306,4058.9,4057.4,0.1222]
[1760536549005,0.6336,4058.8,4057.6,2.46451104]
[1760536549233,2.46396378,4058.6,4057.4,0.1222]
[1760536549435,0.6336,4058.8,4057.7,2.46444131]
[1760536549596,0.4396,4059.9,4057.9,2.46432884]
[1760536549797,2.46326319,4059.7,4057.9,2.46432884]
[1760536550016,0.2306,4059.8,4057.9,2.46432884]
[1760536550217,0.6336,4059.2,4057.9,2.93002884]
[1760536550427,0.6336,4059.2,4057.9,2.46432884]
[1760536550646,0.6336,4059.2,4057.4,0.1222]
[1760536550647,2.46366706,4059.0,4057.4,0.1222]
[1760536550795,2.46331059,4059.6,4057.9,2.46432884]
[1760536550995,3.09696357,4059.5,4057.9,2.58752884]
[1760536551328,0.6336,4059.5,4057.9,2.58752884]
[1760536551632,0.6336,4059.3,4057.9,3.05322884]
[1760536552007,0.6336,4059.4,4057.9,3.05322884]
[1760536552231,0.001,4060.1,4057.9,3.05322884]
[1760536552595,0.2306,4059.7,4057.9,3.05322884]
[1760536552916,2.69383797,4059.7,4057.9,3.05322884]
[1760536553114,0.6336,4059.5,4057.9,3.05322884]
[1760536553494,3.09699712,4059.5,4057.9,3.05322884]
[1760536553697,0.6336,4059.3,4057.9,2.58752884]
[1760536553916,0.6336,4059.3,4057.9,3.05322884]
[1760536554739,2.46373349,4058.9,4057.2,0.4277]
[1760536555042,0.6336,4059.6,4057.9,2.46432884]
[1760536555208,0.6336,4059.5,4057.9,2.46432884]
[1760536555398,2.3616,4059.6,4057.9,2.89202884]
[1760536555597,0.6336,4059.6,4057.9,2.89202884]
[1760536555793,0.6668,4059.7,4057.9,2.89202884]
[1760536556023,0.2306,4059.7,4057.9,4.62002884]
[1760536556810,0.2306,4060.2,4057.9,4.62002884]
[1760536557041,0.2247,4059.9,4057.9,4.62002884]
[1760536557634,0.001,4060.1,4057.9,15.12711212]
[1760536557849,0.001,4060.1,4057.9,11.06280384]
[1760536558141,0.001,4060.1,4058.3,10.456916]
[1760536558341,0.001,4060.1,4060.0,4.39835418]
[1760536558840,0.001,4060.1,4060.0,4.82605418]
[1760536559613,0.001,4061.0,4060.5,2.46275089]
[1760536559832,0.001,4061.0,4060.5,7.66647018]
[1760536560033,0.001,4061.7,4061.6,2.4620839]
[1760536560239,0.001,4061.7,4061.1,3.09598703]
[1760536560240,0.4362,4063.7,4061.8,2.46191226]
[1760536560482,0.2247,4062.9,4061.5,0.2023]
[1760536560742,0.2247,4062.9,4061.9,2.46184211]
[1760536561046,0.4362,4062.6,4061.1,0.2013]
[1760536561249,0.4362,4062.6,4057.3,1.22455489]
[1760536561250,0.2247,4061.9,4060.1,2.46299352]
[1760536561444,3.09556267,4061.8,4060.3,1.728]
[1760536561776,0.2247,4060.4,4058.3,0.4277]
[1760536562065,0.2247,4060.4,4058.0,0.2013]
[1760536562066,0.4362,4060.3,4058.0,0.2013]
[1760536562235,0.6336,4060.2,4058.0,0.2013]
[1760536562438,0.6336,4060.0,4058.0,0.2013]
[1760536562649,2.46366871,4059.0,4058.0,2.46421728]
[1760536562879,0.2247,4058.9,4057.5,0.002]
[1760536563163,0.2247,4058.9,4058.1,2.46419315]
[1760536563324,0.2247,4058.9,4057.5,0.002]
[1760536563769,0.6336,4058.8,4057.5,0.002]
[1760536563933,1.0698,4058.8,4057.5,0.002]
[1760536564286,0.6336,4058.1,4057.5,0.002]
[1760536564569,3.32281104,4057.6,4057.5,0.002]
[1760536564768,5.05081104,4057.6,4057.5,0.1252]
[1760536564939,0.6336,4057.1,4057.0,0.002]
[1760536565271,0.6336,4056.5,4054.4,0.4277]
[1760536565453,0.2247,4056.4,4054.4,0.4277]
[1760536565654,0.4362,4056.6,4056.4,0.1232]
[1760536565870,1.0683,4056.5,4056.4,0.1232]
[1760536566076,0.2247,4057.0,4055.1,0.2093]
[1760536566277,0.6336,4056.9,4056.4,0.1232]
[1760536566563,0.6336,4056.9,4055.1,0.2093]
[1760536566564,0.6336,4056.7,4056.5,0.1232]
[1760536566766,0.6336,4056.5,4054.1,0.1169]
[1760536566954,1.728,4056.5,4054.1,0.1169]
[1760536567263,0.6336,4056.2,4055.2,2.46595393]
[1760536567567,0.4304,4056.1,4053.8,0.6505]
[1760536567765,0.6336,4055.9,4054.0,2.46867571]
[1760536568000,2.4657264,4055.6,4054.0,0.002]
[1760536568179,0.6336,4055.7,4054.0,0.002]
[1760536568384,0.6336,4054.8,4054.0,0.002]
[1760536568564,0.8691,4054.1,4054.0,0.002]
[1760536569090,1.2975,4054.1,4054.0,0.002]
[1760536569255,0.6336,4053.8,4053.1,0.002]
[1760536569453,5.0639821,4053.7,4053.1,0.002]
[1760536569763,8.1953641,4053.7,4053.1,0.002]
[1760536569933,5.4690821,4053.7,4053.1,0.002]
[1760536570344,3.0022,4053.7,4053.1,0.002]
[1760536570568,0.2355,4054.1,4053.6,2.46894296]
[1760536570772,0.4347,4054.4,4053.6,0.002]
[1760536570973,0.4327,4055.3,4053.6,0.002]
[1760536571136,0.4327,4055.3,4053.6,0.02485065]
[1760536571336,0.2355,4055.9,4055.1,2.46600523]
[1760536571576,0.4332,4055.8,4053.6,1.73]
[1760536571770,0.2355,4055.9,4053.6,0.002]
[1760536571771,0.4332,4055.7,4053.6,0.002]
[1760536571975,0.6336,4055.6,4053.6,0.002]
[1760536572267,0.4332,4055.7,4053.6,0.002]
[1760536572474,0.6336,4055.0,4054.0,2.46668782]
[1760536572680,0.4332,4055.5,4053.6,0.002]
[1760536572970,0.2355,4055.9,4053.6,0.002]
[1760536572971,0.4332,4055.7,4053.6,0.002]
[1760536573170,0.4332,4055.7,4053.7,0.4432]
[1760536573474,0.4332,4055.7,4053.6,0.002]
[1760536573971,0.6336,4055.4,4053.6,0.002]
[1760536574138,0.6336,4055.4,4053.7,0.4432]
[1760536574359,0.6336,4055.6,4053.7,0.4432]
[1760536574774,0.4332,4055.7,4053.7,0.4432]
[1760536575005,0.4332,4055.7,4054.8,2.46615898]
[1760536575303,0.6336,4055.6,4054.9,2.4661017]
[1760536575456,0.6336,4055.6,4055.2,2.46593192]
[1760536575657,0.6336,4055.2,4053.5,0.002]
[1760536575872,0.6336,4055.4,4053.5,0.002]
[1760536576072,0.4332,4055.1,4053.5,2.46899197]
[1760536576289,0.4332,4055.1,4053.8,2.46676917]
[1760536576290,0.6336,4054.7,4053.8,2.46676917]
[1760536576469,0.6336,4054.7,4053.6,0.002]
[1760536576670,0.004,4053.4,4047.6,1.29761342]
[1760536576885,0.2355,4053.7,4048.0,0.1211]
[1760536576886,0.8691,4049.7,4048.0,0.1211]
[1760536577064,5.06641871,4049.7,4048.8,0.12908894]
[1760536577254,2.3616,4049.6,4048.8,0.12908894]
[1760536577590,2.3616,4049.6,4048.1,0.02470294]
[1760536577754,0.6336,4049.6,4048.1,0.02470294]
[1760536577955,0.2355,4050.9,4049.5,0.1211]
[1760536578155,0.6336,4050.9,4049.5,0.1211]
[1760536578477,0.2355,4051.5,4049.6,0.26688564]
[1760536578797,0.2355,4053.0,4050.1,1.728]
[1760536578798,0.2355,4052.6,4050.1,1.728]
[1760536579086,0.2355,4052.6,4051.9,2.46796687]
[1760536579253,0.2355,4052.6,4051.8,2.46797806]
[1760536579591,2.46737357,4052.9,4052.0,2.46791575]
[1760536579894,0.2355,4053.0,4052.0,2.46790894]
[1760536580091,2.46743352,4052.8,4051.0,0.1211]
[1760536580259,2.90219295,4052.7,4051.0,0.1211]
[1760536580458,0.4347,4052.7,4051.1,0.01549811]
[1760536580690,0.2355,4053.0,4052.2,2.46775697]
[1760536581005,0.4347,4053.4,4051.0,0.1211]
[1760536581157,0.2355,4054.0,4051.4,0.2422]
[1760536581352,1.728,4053.9,4051.4,0.2422]
[1760536581666,0.6336,4053.7,4051.5,2.46816372]
[1760536581988,0.6336,4053.7,4051.0,0.1211]
[1760536581989,1.728,4053.5,4051.0,0.1211]
[1760536582189,2.46700974,4053.5,4051.2,1.728]
[1760536582398,0.4347,4053.6,4051.3,1.728]
[1760536582555,0.2355,4054.7,4051.6,0.6336]
[1760536582763,0.2355,4054.7,4052.0,1.728]
[1760536583055,0.2355,4054.7,4051.7,1.97885647]